bitfinex/quotes_ETHUSD_20250215
["timestamp","ask_amount","ask_price","bid_price","bid_amount"]
[1739583021781,8.99521,2721.0,2720.3,0.8123]
[1739583021782,3.67552,2720.7,2720.3,0.8123]
[1739583022020,3.67567,2720.6,2720.3,0.8123]
[1739583022220,5.585,2721.0,2720.3,0.8123]
[1739583022221,8.99516,2721.0,2720.3,0.8123]
[1739583022530,3.67525,2720.9,2720.5,3.10671945]
[1739583022828,8.99519,2721.0,2720.5,3.10671945]
[1739583024105,3.71002857,2720.9,2720.5,3.10671945]
[1739583024309,7.38536857,2720.9,2720.5,3.10671945]
[1739583024529,3.71006857,2720.9,2720.3,0.8123]
[1739583024823,3.67561,2720.7,2720.3,0.8123]
[1739583025383,0.03476857,2720.6,2720.3,0.8123]
[1739583025585,0.03476857,2720.6,2720.3,5.32380194]
[1739583025786,3.67539,2720.8,2720.3,5.32380194]
[1739583026009,8.99539,2720.8,2720.3,5.32380194]
[1739583026634,0.03476857,2720.7,2720.3,5.32380194]
[1739583026834,8.99539,2720.8,2720.3,5.32380194]
[1739583027032,0.03476857,2720.6,2720.3,5.32380194]
[1739583027233,8.99539,2720.8,2720.3,5.32380194]
[1739583027432,0.03476857,2720.5,2720.3,0.8123]
[1739583027621,3.67552,2720.7,2720.3,0.8123]
[1739583027826,0.03476857,2720.4,2720.3,0.8123]
[1739583028152,3.67552,2720.7,2720.3,0.8123]
[1739583028322,0.03476857,2720.4,2720.3,0.8123]
[1739583028522,3.67568,2720.6,2720.3,0.8123]
[1739583028711,0.03476857,2720.4,2720.3,0.8123]
[1739583029059,0.03457836,2720.4,2720.3,0.8123]
[1739583029262,5.32,2720.8,2720.3,0.8123]
[1739583029426,0.03457836,2720.4,2720.3,0.8123]
[1739583029759,3.67559,2720.7,2720.3,0.8123]
[1739583029956,0.03457836,2720.4,2720.3,0.8123]
[1739583030404,3.67559,2720.7,2720.3,0.8123]
[1739583030610,0.03457836,2720.4,2720.3,0.8123]
[1739583030853,3.67573,2720.6,2720.5,0.0992]
[1739583033166,3.85921702,2720.7,2720.5,0.0992]
[1739583037147,7.53485702,2720.7,2720.5,0.0992]
[1739583037450,3.85921702,2720.7,2720.5,0.0992]
[1739583037897,9.17921702,2720.7,2720.5,0.0992]
[1739583039178,0.03457836,2720.6,2720.5,0.0992]
[1739583040150,0.03457836,2720.6,2720.5,3.20591945]
[1739583042816,3.71022836,2720.6,2720.5,3.20591945]
[1739583043223,9.03022836,2720.6,2720.5,3.20591945]
[1739583043424,9.03022836,2720.6,2720.5,0.0992]
[1739583046860,8.99565,2720.6,2720.5,0.0992]
[1739583051775,11.20465,2720.6,2720.5,0.0992]
[1739583054734,8.99565,2720.6,2720.5,0.0992]
[1739583057484,11.96815,2720.6,2720.5,0.0992]
[1739583064685,12.51815,2720.6,2720.5,0.0992]
[1739583065609,8.079,2720.6,2719.6,0.7702]
[1739583065778,3.67687,2719.7,2719.6,0.7702]
[1739583066114,8.99687,2719.7,2719.6,0.7702]
[1739583066416,5.32,2719.7,2719.6,0.7702]
[1739583066916,8.99687,2719.7,2719.6,0.7702]
[1739583067327,5.32,2719.7,2719.6,0.7702]
[1739583068015,8.99687,2719.7,2719.6,0.7702]
[1739583069073,8.99687,2719.7,2719.4,0.7813]
[1739583069674,5.32,2719.7,2719.4,0.7813]
[1739583069873,5.32,2719.7,2719.4,4.45855]
[1739583070507,8.99676,2719.8,2719.4,0.7813]
[1739583070715,3.67689,2719.7,2719.4,0.7813]
[1739583071030,5.32,2719.8,2719.4,0.7813]
[1739583071173,3.6769,2719.7,2719.4,0.7813]
[1739583071572,3.67712,2719.6,2719.4,0.7813]
[1739583072197,3.67714,2719.5,2719.1,0.7813]
[1739583074026,3.67716,2719.5,2719.1,0.7813]
[1739583074404,8.99708,2719.6,2719.1,0.7813]
[1739583075323,5.32,2719.6,2719.4,0.7813]
[1739583076623,8.99689,2719.7,2719.4,0.7813]
[1739583077634,5.32,2719.7,2719.4,0.7813]
[1739583080132,0.3678,2720.4,2719.8,3.67673]
[1739583080431,3.67599,2720.4,2720.0,0.7813]
[1739583081528,7.35202,2720.4,2720.0,0.7813]
[1739583081895,3.67615,2720.3,2720.0,0.7813]
[1739583082097,3.67599,2720.4,2720.0,0.7813]
[1739583082398,3.67622,2720.2,2720.0,0.7813]
[1739583083040,3.67606,2720.3,2719.7,0.7813]
[1739583083237,0.809,2720.4,2719.7,0.7813]
[1739583083447,3.67641,2720.1,2719.7,0.7813]
[1739583084114,3.67653,2720.0,2719.7,0.7813]
[1739583085346,3.67641,2720.1,2719.7,0.7813]
[1739583085495,3.67674,2719.8,2719.4,0.8081]
[1739583085694,5.32,2719.8,2719.4,0.8081]
[1739583086210,8.99674,2719.8,2719.4,0.8081]
[1739583088547,5.32,2719.8,2719.4,0.8081]
[1739583089149,5.32,2719.8,2719.4,4.48527]
[1739583090622,8.99674,2719.8,2719.4,4.48527]
[1739583090946,5.32,2719.8,2719.4,4.48527]
[1739583092128,5.32,2719.8,2719.3,3.10671945]
[1739583092129,5.32,2719.8,2719.5,3.67705]
[1739583092451,5.32,2719.8,2719.6,0.8081]
[1739583097339,5.32,2719.9,2719.6,0.8081]
[1739583100885,8.99661,2719.9,2719.6,0.8081]
[1739583101180,5.32,2719.9,2719.6,0.8081]
[1739583101489,8.99662,2719.9,2719.6,0.8081]
[1739583101691,8.99662,2719.9,2719.4,3.67727]
[1739583101692,3.67683,2719.8,2719.4,0.7589]
[1739583103369,8.99683,2719.8,2719.4,0.7589]
[1739583103549,8.99683,2719.8,2719.1,0.7589]
[1739583103550,5.32,2719.7,2719.1,0.7589]
[1739583103749,3.67722,2719.5,2719.1,0.7589]
[1739583104163,3.67725,2719.5,2719.1,0.7589]
[1739583105342,3.67711,2719.6,2719.1,0.7589]
[1739583105546,3.67728,2719.4,2719.1,0.7589]
[1739583107989,3.67709,2719.6,2719.1,0.7589]
[1739583108289,8.99687,2719.7,2719.2,3.67747]
[1739583108591,0.71802564,2719.6,2719.2,3.67747]
[1739583109326,5.32,2719.5,2719.2,3.67747]
[1739583109796,5.32,2719.5,2719.1,4.43657]
[1739583110699,5.32,2719.5,2719.2,3.67746]
[1739583111207,5.32,2719.5,2719.1,4.43658]
[1739583113130,5.32,2719.5,2719.2,3.67748]
[1739583113297,5.32,2719.5,2719.4,3.67728]
[1739583113820,5.32,2719.5,2719.3,7.54301945]
[1739583114202,5.32,2719.5,2719.4,3.67728]
[1739583114601,5.32,2720.2,2719.7,3.67675]
[1739583114769,9.36374,2720.5,2719.9,0.7661]
[1739583115478,10.0815665,2720.5,2719.9,4.44269]
[1739583115675,5.6879,2720.5,2720.0,6.78314945]
[1739583115905,5.6879,2720.5,2720.1,0.7661]
[1739583115906,0.27513379,2720.4,2720.1,0.7661]
[1739583117373,0.27513379,2720.4,2720.1,4.44237]
[1739583117673,0.27513379,2720.3,2720.2,4.4422]
[1739583118502,6.56550602,2720.9,2720.5,3.67575]
[1739583118701,6.56550602,2720.9,2720.6,0.7661]
[1739583119820,0.27461205,2720.8,2720.6,0.7661]
[1739583121318,0.27461205,2720.7,2720.6,0.7661]
[1739583123422,0.27461205,2720.7,2720.4,0.7661]
[1739583123621,3.67566,2720.6,2720.1,4.2292714]
[1739583123826,3.67583,2720.5,2720.2,0.7661]
[1739583124120,3.67595,2720.4,2720.1,3.10671945]
[1739583124636,3.6762,2720.2,2720.0,0.7661]
[1739583124812,3.6762,2720.2,2719.9,3.0]
[1739583125625,6.1047,2720.3,2719.9,3.0]
[1739583125922,5.32,2720.3,2719.9,8.09923394]
[1739583127226,5.32,2720.3,2719.9,1.42263394]
[1739583128528,8.99614,2720.3,2719.9,1.42263394]
[1739583128683,0.27429418,2720.2,2719.8,0.7661]
[1739583128890,3.67641,2720.1,2719.8,0.7661]
[1739583129286,3.67641,2720.1,2719.5,3.10671945]
[1739583129515,3.67674,2719.8,2719.6,0.7661]
[1739583129729,3.67674,2719.8,2719.4,3.7661]
[1739583129926,3.67698,2719.7,2719.4,0.7661]
[1739583130984,5.32,2719.8,2719.4,0.7661]
[1739583131194,5.32,2719.8,2719.4,4.44337]
[1739583132631,5.32,2719.8,2719.4,4.44329]
[1739583133402,8.99674,2719.8,2719.4,0.7661]
[1739583134087,3.67709,2719.6,2719.2,3.88271945]
[1739583134812,3.67716,2719.5,2719.2,3.88271945]
[1739583135008,3.67716,2719.5,2719.2,0.776]
[1739583135189,3.67709,2719.6,2719.0,7.45381]
[1739583135390,7.35422,2719.6,2719.0,7.45381]
[1739583135935,3.67709,2719.6,2719.1,3.0]
[1739583136512,3.67717,2719.5,2719.1,3.0]
[1739583137334,3.67709,2719.6,2719.1,3.0]
[1739583137537,3.67723,2719.5,2719.1,3.0]
[1739583139043,5.32,2719.4,2719.1,3.0]
[1739583139597,5.32,2719.4,2719.1,6.67768]
[1739583139890,5.32,2719.4,2719.1,3.0]
[1739583141395,3.6765,2720.0,2719.3,0.776]
[1739583141647,0.7747,2720.4,2719.8,3.10671945]
[1739583141825,3.67608,2720.3,2719.8,6.78344945]
[1739583142631,3.67623,2720.2,2719.8,3.10671945]
[1739583142798,3.95066604,2720.2,2719.8,3.10671945]
[1739583143953,0.27443604,2720.2,2719.8,3.10671945]
[1739583144335,4.45019,2720.8,2720.2,0.776]
[1739583144545,3.67549,2720.8,2720.2,7.45212]
[1739583144762,3.67549,2720.8,2720.2,3.776]
[1739583145054,3.67549,2720.8,2720.4,3.10671945]
[1739583145353,4.40639652,2720.8,2720.4,3.10671945]
[1739583145661,3.67554,2720.7,2720.2,3.776]
[1739583145840,3.94998541,2720.7,2720.2,3.776]
[1739583146951,0.27444541,2720.6,2720.2,3.776]
[1739583148342,0.27444541,2720.5,2720.2,3.776]
[1739583148826,3.67595,2720.4,2720.0,0.8082]
[1739583149160,3.67608,2720.3,2719.8,3.91491945]
[1739583149317,8.99608,2720.3,2719.8,3.91491945]
[1739583149515,8.99608,2720.3,2719.8,6.91491945]
[1739583150018,8.99608,2720.3,2719.8,3.8082]
[1739583150517,8.99608,2720.3,2719.8,7.48491]
[1739583150718,8.99608,2720.3,2719.8,8.601092]
[1739583150914,0.27451897,2720.2,2719.8,8.601092]
[1739583152162,3.95077897,2720.2,2719.8,3.8082]
[1739583152455,3.67647,2720.0,2719.8,3.0]
[1739583153760,4.74362897,2720.1,2719.8,3.0]
[1739583153963,5.32,2720.0,2719.8,3.0]
[1739583154464,0.27451897,2719.9,2719.8,3.0]
[1739583155161,3.67678,2719.8,2719.3,3.67731]
[1739583157121,7.62895897,2719.5,2719.2,3.0]
[1739583157318,3.95172897,2719.5,2719.2,3.0]
[1739583158267,0.27451897,2719.4,2719.2,3.0]
[1739583158621,3.95179897,2719.4,2719.2,3.0]
[1739583159165,0.27451897,2719.4,2719.2,3.0]
[1739583159533,0.27451897,2719.4,2719.0,0.8]
[1739583159766,4.49456,2719.7,2719.1,3.6776]
[1739583159767,0.27451897,2719.3,2719.1,3.6776]
[1739583159968,0.27451897,2719.3,2719.0,4.19067194]
[1739583160859,0.27451897,2719.4,2719.0,7.86849194]
[1739583162830,5.59451897,2719.4,2719.0,7.86849194]
[1739583163045,5.59451897,2719.4,2719.0,7.47782]
[1739583163843,5.32,2719.4,2719.0,7.47782]
[1739583164569,8.99731,2719.4,2718.9,3.10671945]
[1739583164754,8.99731,2719.4,2718.9,6.78459945]
[1739583168093,0.27454687,2719.3,2719.0,3.67781]
[1739583168587,0.27454687,2719.3,2718.9,3.10671945]
[1739583168588,0.27454687,2719.3,2718.9,6.78464945]
[1739583168788,10.04162687,2719.3,2718.8,8.11807]
[1739583169084,9.76708,2719.3,2718.8,4.44006]
[1739583169944,6.0896,2719.3,2718.8,4.44006]
[1739583170284,9.76703,2719.3,2718.8,4.44006]
[1739583170449,6.0896,2719.3,2718.8,4.44006]
[1739583170648,3.67756,2719.2,2718.8,4.44006]
[1739583170969,6.0896,2719.3,2718.8,4.44006]
[1739583171147,9.76706,2719.3,2718.8,4.44006]
[1739583171343,6.0896,2719.3,2718.8,4.44006]
[1739583171544,9.76706,2719.3,2718.8,4.44006]
[1739583171991,6.0896,2719.3,2718.8,4.44006]
[1739583172161,9.76702,2719.3,2718.8,8.11806]
[1739583172460,9.76702,2719.3,2718.8,4.44006]
[1739583173062,9.76702,2719.3,2718.8,8.11807]
[1739583173293,9.76702,2719.3,2718.8,8.11806]
[1739583173918,9.76702,2719.3,2718.8,4.44006]
[1739583175394,9.76702,2719.3,2718.8,8.11807]
[1739583176220,9.76702,2719.3,2718.8,4.44006]
[1739583176421,0.27451101,2719.2,2718.8,0.7621]
[1739583176625,0.27451101,2719.2,2718.8,4.44012]
[1739583177514,9.76702,2719.3,2718.8,4.44012]
[1739583179717,0.27493674,2719.2,2718.8,4.44012]
[1739583180298,3.95248674,2719.2,2718.8,0.7621]
[1739583180624,9.27248674,2719.2,2718.8,0.7621]
[1739583180843,0.27493674,2719.1,2718.9,3.67791]
[1739583182042,0.27493674,2719.1,2718.8,4.44013]
[1739583182339,5.32,2719.2,2718.8,4.44015]
[1739583183042,8.99757,2719.2,2718.8,4.44015]
[1739583183244,5.32,2719.2,2718.9,3.67794]
[1739583183541,5.32,2719.2,2718.8,4.44015]
[1739583183542,8.99755,2719.2,2718.8,4.44015]
[1739583184340,8.99755,2719.2,2718.8,3.67805]
[1739583185109,8.99755,2719.2,2718.8,3.67801]
[1739583185110,5.32,2719.2,2718.8,3.67801]
[1739583185313,0.27546858,2719.1,2718.8,3.67801]
[1739583185848,0.27546858,2719.1,2718.9,3.67793]
[1739583186925,0.27546858,2719.0,2718.9,3.67793]
[1739583187821,8.58e-06,2719.0,2718.9,12.14404345]
[1739583188022,8.58e-06,2719.0,2718.9,12.60167032]
[1739583188502,6.6188,2720.3,2719.8,3.67662]
[1739583188701,6.6188,2720.3,2719.9,0.7738]
[1739583189111,6.6188,2720.3,2719.9,4.45036]
[1739583189312,6.6188,2720.3,2719.9,4.45038]
[1739583190024,6.6188,2720.3,2719.9,0.7738]
[1739583190534,5.825,2720.3,2719.9,4.45031]
[1739583190749,5.825,2720.3,2720.0,3.67639]
[1739583190898,5.825,2720.3,2720.1,3.0]
[1739583191910,5.825,2720.3,2720.0,3.67638]
[1739583191911,5.825,2720.3,2720.0,3.0]
[1739583192242,5.825,2720.3,2719.5,3.67713]
[1739583192243,6.6399,2720.3,2719.5,3.67713]
[1739583192430,0.8149,2719.8,2719.4,0.8322]
[1739583192608,0.8149,2719.8,2719.3,6.78404945]
[1739583193208,9.81173,2719.8,2719.0,7.61671945]
[1739583193541,3.67709,2719.6,2719.0,6.78451945]
[1739583193915,8.99689,2719.7,2719.1,3.67762]
[1739583194400,8.99689,2719.7,2719.1,3.71439307]
[1739583195036,8.99689,2719.7,2719.1,3.67762]
[1739583195213,5.32,2719.7,2719.3,3.67731]
[1739583195836,5.32,2719.7,2719.2,3.67742]
[1739583196803,5.32,2719.7,2719.2,0.8322]
[1739583197032,5.32,2719.7,2719.6,3.67701]
[1739583197348,5.32,2720.2,2719.9,3.6766]
[1739583197516,5.32,2720.2,2719.9,7.35312]
[1739583197716,5.32,2720.2,2720.0,3.67644]
[1739583198341,5.32,2720.2,2719.9,3.67652]
[1739583198546,5.32,2720.2,2720.1,3.67633]
[1739583198753,5.825,2720.3,2720.1,3.67624]
[1739583199850,5.825,2720.3,2719.9,0.45454829]
[1739583200048,5.825,2720.3,2720.1,3.67627]
[1739583200554,5.825,2720.3,2720.2,4.5084]
[1739583200710,5.825,2720.3,2720.2,0.8322]
[1739583201960,5.825,2720.3,2720.2,4.5084]
[1739583202250,5.825,2720.3,2720.2,0.8322]
[1739583202808,5.825,2720.3,2720.2,4.5084]
[1739583203106,5.825,2720.3,2720.2,8.326864]
[1739583203330,5.32,2720.5,2720.2,8.326864]
[1739583204179,5.32,2720.5,2720.2,4.650664]
[1739583204376,5.32,2720.5,2720.2,8.326744]
[1739583204678,5.32,2720.5,2720.2,3.8322]
[1739583204859,5.32,2720.5,2720.2,3.0]
[1739583205327,9.7424877,2720.7,2720.2,3.0]
[1739583205979,0.785,2720.4,2719.9,3.67655]
[1739583206134,4.46104,2720.4,2719.9,3.67655]
[1739583208383,0.785,2720.4,2719.9,3.67651]
[1739583211281,0.785,2720.4,2720.0,3.67646]
[1739583212941,10.5275577,2720.7,2719.9,1.1134]
[1739583213141,10.5275577,2720.7,2720.2,0.7807]
[1739583213345,10.5275577,2720.7,2720.2,4.45688]
[1739583214889,9.78062,2720.7,2720.2,4.45688]
[1739583215063,9.78062,2720.7,2720.3,3.67604]
[1739583215583,9.78062,2720.7,2720.2,0.7807]
[1739583215789,9.78062,2720.7,2720.2,4.45688]
[1739583216874,6.105,2720.7,2720.3,3.67603]
[1739583217488,6.105,2720.7,2720.2,0.7807]
[1739583217698,9.78054,2720.7,2720.2,4.45689]
[1739583217891,9.78054,2720.7,2720.2,0.7807]
[1739583218189,3.67566,2720.6,2720.2,0.7807]
[1739583218394,3.67566,2720.6,2720.1,3.6762]
[1739583219085,3.67566,2720.6,2719.9,6.78322945]
[1739583219291,3.67566,2720.6,2720.1,3.67631]
[1739583220368,3.67566,2720.6,2720.1,3.67625]
[1739583221597,6.105,2720.7,2720.1,3.67625]
[1739583221798,6.105,2720.7,2720.2,0.7801]
[1739583221950,5.32,2720.7,2720.4,3.67583]
[1739583222156,6.87670419,2720.9,2720.4,4.49269293]
[1739583222357,6.1264,2720.9,2720.4,4.49269293]
[1739583222674,5.32,2720.9,2720.6,0.7801]
[1739583222858,3.67493,2721.2,2720.7,3.67544]
[1739583223195,3.67493,2721.2,2720.7,4.79923594]
[1739583223572,3.67493,2721.2,2720.6,3.7801]
[1739583223573,3.67512,2721.0,2720.6,3.7801]
[1739583223777,3.67512,2721.0,2720.5,3.0]
[1739583224208,3.675,2721.1,2720.5,3.0]
[1739583224366,3.675,2721.1,2720.6,3.67564]
[1739583224563,3.6749,2721.2,2720.6,3.67564]
[1739583224798,0.73396315,2721.0,2720.6,7.87843129]
[1739583225487,0.73396315,2721.0,2720.7,3.67542]
[1739583228635,0.73396315,2721.0,2720.6,4.20279129]
[1739583228800,0.73396315,2721.0,2720.9,3.67525]
[1739583228986,5.32,2721.3,2720.9,3.67525]
[1739583229189,5.32,2721.3,2721.0,0.735052]
[1739583229418,5.32,2721.4,2721.1,4.455]
[1739583230993,5.32,2721.4,2721.1,0.7801]
[1739583232043,3.67435,2721.6,2721.3,3.67471]
[1739583232044,6.06688521,2721.6,2721.3,3.67471]
[1739583232241,6.06688521,2721.6,2721.4,0.367471]
[1739583232992,5.32,2721.6,2721.4,4.042041]
[1739583233238,5.32,2721.6,2721.5,0.7801]
[1739583236952,5.35467338,2721.6,2721.5,0.7801]
[1739583237147,0.03467338,2721.6,2721.5,0.7801]
[1739583237449,0.03467338,2721.6,2721.5,1.6297741]
[1739583237646,11.143,2721.8,2721.5,1.6297741]
[1739583237821,0.03467338,2721.6,2721.5,1.6297741]
[1739583238016,11.143,2721.8,2721.5,1.6297741]
[1739583238221,0.03467338,2721.6,2721.5,1.6297741]
[1739583238416,11.143,2721.8,2721.5,1.6297741]
[1739583238619,0.03467338,2721.6,2721.5,1.6297741]
[1739583238851,11.143,2721.8,2721.5,5.3042141]
[1739583239320,0.03467338,2721.7,2721.5,5.3042141]
[1739583239520,0.73446285,2722.0,2721.8,3.67393]
[1739583239755,5.32,2722.3,2721.8,3.67397]
[1739583239756,0.03467338,2721.9,2721.8,3.67397]
[1739583240125,5.32,2722.3,2721.8,3.67397]
[1739583240459,0.03467338,2722.2,2721.8,3.67397]
[1739583240752,3.6735,2722.2,2721.9,1.12253595]
[1739583241163,0.03467338,2722.1,2721.9,1.12253595]
[1739583242089,8.99339,2722.3,2721.9,1.12253595]
[1739583242260,0.03467338,2722.2,2721.9,1.12253595]
[1739583242555,8.99339,2722.3,2721.9,1.12253595]
[1739583242758,0.03467338,2722.1,2722.0,0.4796556]
[1739583242944,3.67353,2722.2,2722.0,0.4796556]
[1739583243138,3.67353,2722.2,2721.7,7.55129945]
[1739583243139,0.03467338,2722.1,2721.7,7.55129945]
[1739583244259,3.70839338,2722.1,2721.7,0.7705]
[1739583244455,3.70839338,2722.1,2721.6,3.53042141]
[1739583244456,0.7759,2721.9,2721.6,3.53042141]
[1739583244877,0.03542463,2721.8,2721.6,3.53042141]
[1739583245077,0.03542463,2721.8,2721.7,0.35304214]
[1739583247776,3.67376,2722.0,2721.7,0.35304214]
[1739583248287,3.70930909,2721.9,2721.7,0.35304214]
[1739583249443,7.38329909,2721.9,2721.7,0.35304214]
[1739583249641,3.67403,2721.8,2721.4,0.7705]
[1739583249881,3.67441,2721.6,2721.2,0.8019]
[1739583250082,3.67444,2721.5,2721.2,0.8019]
[1739583250399,3.67472,2721.3,2721.0,0.8019]
[1739583250550,3.67472,2721.3,2721.0,0.39086195]
[1739583250754,3.71045069,2721.2,2720.7,3.67544]
[1739583251070,3.67495,2721.2,2720.7,3.67544]
[1739583251386,0.03550069,2721.1,2720.8,3.0]
[1739583251560,0.03550069,2721.1,2720.7,3.67544]
[1739583251752,3.67485,2721.2,2720.7,3.67544]
[1739583251958,0.03550069,2721.0,2720.8,3.447734]
[1739583252201,3.67485,2721.2,2720.8,3.447734]
[1739583252426,0.03550069,2720.9,2720.8,3.447734]
[1739583252702,3.67485,2721.2,2720.8,3.447734]
[1739583253294,0.03550069,2721.1,2720.8,3.447734]
[1739583253505,0.03550069,2721.1,2720.9,0.7123174]
[1739583254215,0.03550069,2721.1,2720.8,3.447734]
[1739583254419,3.67553,2720.7,2720.4,0.7896]
[1739583254707,3.67565,2720.6,2720.3,3.0]
[1739583255010,0.0351061,2720.5,2720.3,3.0]
[1739583255207,0.0351061,2720.5,2720.3,0.68963195]
[1739583255412,3.7109561,2720.5,2720.1,0.7896]
[1739583258486,3.67594,2720.4,2720.0,3.0]
[1739583258811,3.67607,2720.3,2720.0,3.0]
[1739583259009,3.67585,2720.5,2720.0,3.0]
[1739583259214,0.03500146,2720.2,2720.0,3.0]
[1739583259390,3.67585,2720.5,2720.1,1.05729195]
[1739583259803,7.35173,2720.5,2720.1,1.05729195]
[1739583260491,3.67593,2720.4,2720.1,1.05729195]
[1739583261026,3.67585,2720.5,2720.1,1.05729195]
[1739583261027,3.67608,2720.3,2720.1,1.05729195]
[1739583261238,3.67585,2720.5,2720.1,1.05729195]
[1739583262222,3.67607,2720.3,2720.1,1.05729195]
[1739583264310,0.03439286,2720.2,2720.1,1.05729195]
[1739583264534,3.67607,2720.3,2720.1,1.05729195]
[1739583264730,0.03439286,2720.2,2720.1,1.05729195]
[1739583264898,3.67607,2720.3,2720.1,1.05729195]
[1739583265232,0.03439286,2720.2,2720.1,1.05729195]
[1739583265532,3.67607,2720.3,2720.1,1.05729195]
[1739583265725,0.03439286,2720.2,2720.1,1.05729195]
[1739583265934,3.67607,2720.3,2720.1,1.05729195]
[1739583266097,0.03439286,2720.2,2720.1,1.05729195]
[1739583266298,3.67607,2720.3,2720.1,1.05729195]
[1739583266621,0.03439286,2720.2,2720.1,1.05729195]
[1739583267043,3.67607,2720.3,2720.1,1.05729195]
[1739583267287,0.03439286,2720.2,2720.0,3.0]
[1739583267587,3.67607,2720.3,2720.0,3.0]
[1739583267790,0.03439286,2720.1,2720.0,3.0]
[1739583267961,3.67588,2720.5,2719.7,3.67676]
[1739583267962,8.99581,2720.5,2719.7,0.7662]
[1739583268144,3.67661,2719.9,2719.7,0.7662]
[1739583268347,3.67661,2719.9,2719.4,0.7662]
[1739583268587,3.67696,2719.7,2719.4,0.7662]
[1739583268883,3.67696,2719.7,2719.4,3.7662]
[1739583269265,0.03439286,2719.6,2719.4,3.7662]
[1739583269467,0.03439286,2719.6,2719.4,4.82124395]
[1739583270085,0.03439286,2719.6,2719.4,4.85801235]
[1739583270291,0.03439286,2719.6,2719.4,4.82124395]
[1739583270479,3.67666,2719.9,2719.4,4.82124395]
[1739583270681,3.67666,2719.9,2719.4,8.49848395]
[1739583270860,3.67666,2719.9,2719.5,1.52825434]
[1739583271072,0.03439286,2719.8,2719.5,1.52825434]
[1739583271676,3.67687,2719.7,2719.5,1.52825434]
[1739583271906,3.67687,2719.7,2719.4,3.0]
[1739583272222,0.03439286,2719.6,2719.4,3.0]
[1739583274108,3.67687,2719.7,2719.4,3.0]
[1739583276211,3.67705,2719.6,2719.4,3.0]
[1739583276410,3.67714,2719.5,2719.2,0.7662]
[1739583276614,3.67732,2719.4,2719.1,3.0]
[1739583276795,3.67714,2719.5,2718.9,0.7662]
[1739583276970,3.67714,2719.5,2719.0,0.444426]
[1739583277170,3.67735,2719.4,2719.0,0.444426]
[1739583277712,3.67744,2719.3,2719.0,0.444426]
[1739583278212,3.67714,2719.5,2719.0,0.444426]
[1739583278708,3.67714,2719.5,2719.1,3.0]
[1739583279175,3.67714,2719.5,2719.0,7.122176]
[1739583279508,3.67714,2719.5,2719.1,3.0]
[1739583280307,7.35436,2719.5,2719.1,3.0]
[1739583280707,7.35436,2719.5,2719.0,4.122176]
[1739583280922,3.67728,2719.4,2719.0,4.122176]
[1739583281420,3.67728,2719.4,2719.0,0.444426]
[1739583281569,3.67728,2719.4,2719.0,4.122236]
[1739583282217,3.67691,2719.7,2719.2,0.7901]
[1739583282608,3.67691,2719.7,2719.2,4.46757]
[1739583282808,3.6771,2719.6,2719.2,0.7901]
[1739583282988,3.67726,2719.5,2719.0,6.10671945]
[1739583283319,3.67726,2719.5,2719.1,3.0]
[1739583283518,7.35449,2719.5,2719.1,3.0]
[1739583283813,3.67723,2719.5,2719.1,3.0]
[1739583285295,3.67696,2719.7,2719.1,6.67761]
[1739583286179,3.6771,2719.6,2719.1,6.67761]
[1739583286506,6.81151148,2719.8,2719.1,4.55984184]
[1739583286686,3.67701,2719.6,2719.1,4.55984184]
[1739583287216,5.32,2719.8,2719.7,0.7901]
[1739583287423,5.32,2720.3,2719.9,3.67652]
[1739583287829,5.32,2720.3,2719.9,3.0]
[1739583288437,5.32,2720.3,2720.1,3.67629]
[1739583288595,6.5881,2720.7,2720.1,3.0]
[1739583288796,5.823,2720.7,2720.2,3.67606]
[1739583289091,5.823,2720.7,2720.4,0.7901]
[1739583290134,5.823,2720.7,2720.5,3.0]
[1739583290335,5.823,2720.7,2720.6,0.746601]
[1739583290759,5.32,2721.5,2721.0,3.67511]
[1739583290905,0.7651,2721.7,2721.3,3.67462]
[1739583291246,0.7651,2721.7,2721.2,0.7901]
[1739583291445,0.7651,2721.7,2721.2,4.46493]
[1739583291646,0.7651,2721.7,2721.2,5.88958395]
[1739583292043,0.7651,2721.7,2721.0,6.67511]
[1739583292249,0.7651,2721.7,2720.7,7.57228945]
[1739583292469,3.67445,2721.5,2720.7,7.57228945]
[1739583292626,3.67459,2721.4,2720.8,3.0]
[1739583293041,3.67459,2721.4,2720.8,6.67536]
[1739583293229,3.67459,2721.4,2720.8,8.17478505]
[1739583293660,3.67459,2721.4,2720.8,4.49942505]
[1739583293868,0.7651,2721.3,2720.8,4.49942505]
[1739583294053,0.7651,2721.3,2720.8,3.0]
[1739583294661,4.43982,2721.3,2720.8,3.0]
[1739583295382,3.67504,2721.1,2720.5,3.67576]
[1739583295581,3.6752,2721.0,2720.3,3.67602]
[1739583295726,3.6752,2721.0,2720.4,0.448492]
[1739583296577,3.6752,2721.0,2720.4,3.448492]
[1739583296742,3.6752,2721.0,2720.4,7.124412]
[1739583297817,0.8283,2721.1,2720.4,3.448492]
[1739583298013,0.8283,2721.1,2720.5,3.67573]
[1739583298220,4.50336,2721.1,2720.6,0.7124222]
[1739583299414,9.82336,2721.1,2720.6,0.7124222]
[1739583300318,9.82336,2721.1,2720.5,3.67573]
[1739583300501,6.1483,2721.1,2720.5,3.67573]
[1739583300691,6.1483,2721.1,2720.6,3.67562]
[1739583300889,6.1483,2721.1,2720.6,3.67563]
[1739583301287,6.1483,2721.1,2720.7,3.67551]
[1739583301491,5.32,2721.1,2720.9,3.67524]
[1739583301735,5.32,2721.3,2721.0,3.67503]